[Event "Galicia-ch U18 2021"]
[Site "Padron"]
[Date "2021.04.04"]
[Round "8.6"]
[White "Sanroman Costas, Mauro"]
[Black "Bastos Gonzalez, Gonzalo"]
[Result "1-0"]
[ECO "B34"]
[WhiteElo "1784"]
[BlackElo "1685"]
[Annotator "NA"]
[PlyCount "79"]
[EventDate "2021.04.02"]
[EventType "swiss"]
[EventCountry "ESP"]
[SourceTitle "playchess.com"]
[Source "ChessBase"]
[SourceQuality "1"]
[TimeControl "5400+30"]

1. e4 {[%emt 0:00:00]} c5 {[%emt 0:00:00]} 2. Nf3 {[%emt 0:00:00]} Nc6 {[%emt 0:00:00]} 3. d4 {[%emt 0:00:00]} cxd4 {[%emt 0:00:00]} 4. Nxd4 {[%emt 0:00:00]} Nf6 {[%emt 0:00:00]} 5. Nc3 {[%emt 0:00:00]} e5 {[%emt 0:00:00]} 6. Ndb5 {[%emt 0:00:00]} d6 {[%emt 0:00:03]} 7. Nd5 {[%emt 0:00:00]} Nxd5 {[%emt 0:00:07]} 8. exd5 {[%emt 0:00:05]} Nb8 {[%emt 0:00:03]} 9. Qf3 {[%emt 0:00:01]} Be7 {[%emt 0:04:51]} 10. Qc3 {[%emt 0:00:18]} Na6 {[%emt 0:02:04]} 11. Be3 {[%emt 0:00:01]} O-O {[%emt 0:03:07]} 12. Be2 {[%emt 0:05:07]} f5 {[%emt 0:03:12]} 13. f4 {[%emt 0:01:11]} exf4 {[%emt 0:12:22]} 14. Bxf4 {[%emt 0:00:19]} Nc5 {[%emt 0:02:20]} 15. O-O {[%emt 0:04:46]} Bd7 {[%emt 0:06:14]} 16. Nxd6 {[%emt 0:09:13]} Bxd6 {[%emt 0:03:32]} 17. Bxd6 {[%emt 0:00:17]} Ne4 {[%emt 0:02:22]} 18. Qc7 {[%emt 0:00:25]} Qxc7 {[%emt 0:00:41]} 19. Bxc7 {[%emt 0:00:03]} Rac8 {[%emt 0:00:14]} 20. d6 {[%emt 0:00:32]} Nf6 {[%emt 0:19:19]} 21. Bf3 {[%emt 0:00:36]} b6 {[%emt 0:12:36]} 22. Rfe1 {[%emt 0:03:32]} Rfe8 {[%emt 0:00:44]} 23. b4 {[%emt 0:00:50]} b5 {[%emt 0:01:55]} 24. a4 {[%emt 0:00:44]} bxa4 {[%emt 0:01:09]} 25. c4 {[%emt 0:00:55]} Rxe1+ {[%emt 0:00:37]} 26. Rxe1 {[%emt 0:00:02]} Re8 {[%emt 0:00:01]} 27. Ra1 {[%emt 0:00:42]} Re3 {[%emt 0:01:51]} 28. c5 {[%emt 0:01:37]} Ne4 {[%emt 0:02:40]} 29. Bxe4 {[%emt 0:02:28]} fxe4 {[%emt 0:02:08]} 30. Rc1 {[%emt 0:00:01]} Rd3 {[%emt 0:17:57]} 31. c6 {[%emt 0:00:52]} Be6 {[%emt 0:00:31]} 32. b5 {[%emt 0:06:10]} a3 {[%emt 0:01:01]} 33. Ra1 {[%emt 0:00:23]} a2 {[%emt 0:00:28]} 34. Rxa2 {[%emt 0:00:45]} Bxa2 {[%emt 0:00:22]} 35. d7 {[%emt 0:00:02]} Bc4 {[%emt 0:00:36]} 36. Bd6 {[%emt 0:00:30]} Rxd6 {[%emt 0:02:08]} 37. c7 {[%emt 0:00:01]} Rd1+ {[%emt 0:00:40]} 38. Kf2 {[%emt 0:00:11]} Rd2+ {[%emt 0:00:27]} 39. Ke1 {[%emt 0:00:47]} e3 40. d8=Q+ 1-0